fUSD/lending_fUSD_20260409
["ID","MTS","AMOUNT","RATE_DAILY","PERIOD"]
[420120861,1775693443514,-170.0,0.00014924,2]
[420120862,1775693443525,-170.0,0.00014924,2]
[420120863,1775693443536,-170.0,0.00014924,2]
[420120864,1775693443547,-5000.0,0.00014925,2]
[420120865,1775693443558,-5000.0,0.00014925,2]
[420120866,1775693443569,-5000.0,0.00014925,2]
[420120867,1775693443581,-5000.0,0.00014925,2]
[420120868,1775693443593,-321.58,0.00014928,2]
[420120869,1775693443604,-786.02,0.00014928,2]
[420120870,1775693443615,-506.0,0.00014958,3]
[420120871,1775693443627,-1116.0,0.00014968,2]
[420120872,1775693443638,-8260.13072239,0.00014979,2]
[420120873,1775693443649,-500.0,0.00014979,2]
[420120875,1775693443660,-151.0,0.00014979,2]
[420120877,1775693443671,-150.00000001,0.00014984,2]
[420120879,1775693443682,-38207.05716786,0.00014988,2]
[420120881,1775693443692,-46018.12785753,0.00014995,2]
[420120882,1775693443703,-215.35,0.00015,2]
[420120884,1775693443714,-2756.92717347,0.00015,2]
[420120885,1775693443726,-1007.07827575,0.00015,2]
[420120886,1775693443737,-5888.0,0.00015008,2]
[420120887,1775693443749,-500.0,0.00015021,11]
[420120888,1775693443760,-8565.75555911,0.00015034,2]
[420120889,1775693443770,-500.0,0.00015034,2]
[420120890,1775693443781,-151.0,0.00015034,2]
[420120891,1775693443791,-1573.0,0.0001504,2]
[420120892,1775693443802,-319.0,0.0001504,2]
[420120893,1775693443813,-800.91792691,0.00015068,2]
[420120894,1775693443824,-200.0,0.0001507,2]
[420120895,1775693443835,-225.648,0.0001507,2]
[420120896,1775693443846,-250.0,0.0001507,2]
[420120897,1775693443857,-250.0,0.0001507,2]
[420120898,1775693443867,-250.0,0.0001507,2]
[420120899,1775693443878,-208.195,0.0001507,2]
[420120900,1775693443888,-250.0,0.0001507,2]
[420120901,1775693443899,-163.308,0.0001507,2]
[420120902,1775693443910,-155.122,0.0001507,2]
[420120903,1775693443921,-193.665,0.0001507,2]
[420120904,1775693443932,-166.211,0.0001507,2]
[420120905,1775693443945,-215.048,0.0001507,2]
[420120906,1775693443956,-250.0,0.0001507,2]
[420120907,1775693443967,-180.0,0.0001507,2]
[420120908,1775693443979,-3524.0,0.0001507,2]
[420120909,1775693443991,-1363.382,0.0001507,2]
[420120912,1775693444002,-622.0,0.0001507,2]
[420120915,1775693444013,-1264.0,0.0001507,2]
[420120916,1775693444024,-150.0,0.0001507,2]
[420120917,1775693444035,-8882.6885148,0.00015089,2]
[420120918,1775693444046,-500.0,0.00015089,2]
[420120919,1775693444056,-151.0,0.00015089,2]
[420120920,1775693444067,-240.4,0.00015099,2]
[420120921,1775693444078,-231.2724,0.000151,2]
[420120922,1775693444090,-9211.34798985,0.00015144,2]
[420120923,1775693444100,-500.0,0.00015144,2]
[420120924,1775693444110,-151.0,0.00015144,2]
[420120925,1775693444121,-1098.56312406,0.00015144,2]
[420120926,1775693444131,-477.15533545,0.00015144,2]
[420120927,1775693444142,-350.0,0.00015149,2]
[420120928,1775693444153,-321.58,0.00015162,2]
[420120929,1775693444163,-500.0,0.00015199,2]
[420120930,1775693444174,-9552.16786547,0.00015199,2]
[420120931,1775693444185,-151.0,0.00015199,2]
[420120932,1775693444195,-1311.204454,0.000152,2]
[420120933,1775693444206,-786.02,0.00015202,2]
[420120934,1775693444217,-238.38,0.00015246,14]
[420120935,1775693444228,-500.0,0.00015254,2]
[420120936,1775693444240,-9905.5980765,0.00015254,2]
[420120937,1775693444250,-151.0,0.00015254,2]
[420120938,1775693444261,-1789.0,0.00015276,2]
[420120939,1775693444272,-350.0,0.00015306,2]
[420120940,1775693444282,-1789.0,0.00015307,2]
[420120941,1775693444293,-500.0,0.00015309,2]
[420120942,1775693444303,-10272.10520533,0.00015309,2]
[420120943,1775693444314,-151.0,0.00015309,2]
[420120944,1775693444325,-291.70752069,0.0001532,2]
[420120945,1775693444335,-1573.0,0.0001536,2]
[420120946,1775693444345,-1789.0,0.0001536,2]
[420120947,1775693444356,-500.0,0.00015364,2]
[420120948,1775693444367,-10652.17309792,0.00015364,2]
[420120949,1775693444377,-151.0,0.00015364,2]
[420120950,1775693444388,-1789.0,0.00015372,2]
[420120951,1775693444399,-350.0,0.00015378,3]
[420120952,1775693444409,-1114.53847998,0.00015391,2]
[420120953,1775693444421,-1091.41626246,0.00015391,2]
[420120954,1775693444431,-1075.50278025,0.00015391,2]
[420120955,1775693444442,-1148.42068238,0.00015391,2]
[420120956,1775693444453,-1015.5984538,0.00015391,2]
[420120957,1775693444464,-1084.89584296,0.00015391,2]
[420120958,1775693444475,-1030.99158446,0.00015391,2]
[420120959,1775693444486,-1446.78394773,0.00015391,2]
[420120960,1775693444497,-1131.0334216,0.00015396,2]
[420120961,1775693444507,-1116.45725708,0.00015396,2]
[420120962,1775693444518,-1052.622107,0.00015396,2]
[420120963,1775693444529,-1084.84092547,0.00015396,2]
[420120964,1775693444539,-1089.14027619,0.00015396,2]
[420120965,1775693444550,-1010.56215523,0.00015396,2]
[420120966,1775693444561,-1031.24808988,0.00015396,2]
[420120967,1775693444573,-1098.6943985,0.00015396,2]
[420120968,1775693444582,-321.58,0.00015397,2]
[420120969,1775693444593,-2208.656,0.000154,2]
[420120970,1775693444603,-2010.0,0.000154,2]
[420120971,1775693444614,-9900.0,0.000154,5]
[420120972,1775693444624,-1789.0,0.00015404,2]
[420120973,1775693444634,-500.0,0.00015419,2]
[420120974,1775693444645,-11046.30350255,0.00015419,2]
[420120975,1775693444655,-151.0,0.00015419,2]
[420120976,1775693444665,-1000.0,0.00015428,2]
[420120977,1775693444674,-160.111,0.00015435,2]
[420120978,1775693444684,-1000.0,0.00015441,2]
[420120979,1775693444695,-1000.0,0.00015441,2]
[420120980,1775693444705,-1000.0,0.00015441,2]
[420120981,1775693444715,-1000.0,0.00015441,2]
[420120982,1775693444726,-1000.0,0.00015441,2]
[420120983,1775693444736,-1000.0,0.00015441,2]
[420120984,1775693444747,-1000.0,0.00015441,2]
[420120985,1775693444758,-1000.0,0.00015441,2]
[420120986,1775693444768,-1000.0,0.00015441,2]
[420120987,1775693444779,-1000.0,0.00015441,2]
[420120988,1775693444789,-1000.0,0.00015441,2]
[420120989,1775693444799,-398.985,0.00015441,2]
[420120990,1775693444810,-1613.0,0.00015442,2]
[420120991,1775693444820,-6717.7,0.00015471,2]
[420120992,1775693444829,-1904.19,0.00015471,2]
[420120993,1775693444840,-200.0,0.00015472,2]
[420120994,1775693444850,-1235.18214925,0.00015472,2]
[420120995,1775693444860,-181.08010149,0.00015472,2]
[420120996,1775693444870,-771.01748645,0.00015472,2]
[420120997,1775693444879,-181.08010149,0.00015472,2]
[420120998,1775693444890,-599.60298507,0.00015472,2]
[420120999,1775693444900,-295.98088606,0.00015472,2]
[420121000,1775693444909,-500.0,0.00015474,2]
[420121001,1775693444919,-11455.01673214,0.00015474,2]
[420121002,1775693444929,-151.0,0.00015474,2]
[420121003,1775693444939,-785.56,0.00015476,2]
[420121004,1775693444950,-449.92816,0.0001549,2]
[420121005,1775693444960,-487.975926,0.0001549,7]
[420121006,1775693444971,-500.0,0.00015498,12]
[420121007,1775693444981,-12400.0,0.000155,5]
[420121008,1775693444992,-1789.0,0.00015527,2]
[420121009,1775693445002,-500.0,0.00015529,2]
[420121010,1775693445013,-586.08281143,0.00015529,2]
[420121011,1775693445023,-151.0,0.00015529,2]
[420121012,1775693445033,-789.0,0.00015556,2]
[420121013,1775693445043,-4287.4299861,0.00015559,2]
[420121014,1775693445054,-4287.42998608,0.00015569,2]
[420121015,1775693445065,-394.52834,0.0001557,2]
[420121016,1775693445075,-4287.42998608,0.00015579,2]
[420121017,1775693445085,-500.0,0.00015584,2]
[420121018,1775693445095,-151.0,0.00015584,2]
[420121019,1775693445105,-500.0,0.00015584,2]
[420121020,1775693445115,-500.0,0.00015584,2]
[420121021,1775693445126,-4287.42998608,0.0001559,2]
[420121022,1775693445136,-1789.0,0.00015598,2]
[420121023,1775693445146,-4287.42998608,0.000156,2]
[420121024,1775693445156,-2400.0,0.000156,5]
[420121025,1775693445166,-196.514914,0.00015607,2]
[420121026,1775693445175,-1645.5070625,0.00015607,2]
[420121027,1775693445186,-12930.27793195,0.00015607,2]
[420121028,1775693445196,-644.17707929,0.00015607,2]
[420121029,1775693445206,-315.86203635,0.00015607,2]
[420121030,1775693445217,-10000.0,0.00015608,2]
[420121031,1775693445228,-38207.05716786,0.0001561,2]
[420121032,1775693445237,-4287.42998608,0.0001561,2]
[420121033,1775693445248,-46018.12785753,0.0001561,2]
[420121034,1775693445257,-394.52833,0.0001562,2]
[420121035,1775693445267,-321.58,0.00015631,2]
[420121036,1775693445278,-500.0,0.00015639,2]
[420121037,1775693445289,-151.0,0.00015639,2]
[420121038,1775693445299,-1789.0,0.00015654,2]
[420121039,1775693445309,-1789.0,0.00015659,2]
[420121040,1775693445319,-394.52833,0.0001567,2]
[420121041,1775693445330,-33915.0,0.00015671,2]
[420121042,1775693445340,-1219.81170071,0.0001568,2]
[420121043,1775693445350,-1573.0,0.0001568,2]
[420121044,1775693445361,-1573.0,0.0001568,2]
[420121045,1775693445371,-162.0,0.0001568,2]
[420121046,1775693445381,-1789.0,0.00015682,2]
[420121047,1775693445390,-349.08,0.00015684,2]
[420121048,1775693445401,-150.0,0.00015685,2]
[420121049,1775693445411,-150.0,0.00015685,2]
[420121050,1775693445421,-150.0,0.00015685,2]
[420121051,1775693445432,-150.0,0.00015685,2]
[420121052,1775693445442,-150.0,0.00015685,2]
[420121053,1775693445452,-248.882292,0.00015685,2]
[420121054,1775693445462,-152.1118183,0.00015685,2]
[420121055,1775693445471,-500.0,0.00015694,2]
[420121056,1775693445481,-151.0,0.00015694,2]
[420121057,1775693445491,-1789.0,0.00015696,2]
[420121058,1775693445501,-200.0,0.000157,2]
[420121059,1775693445511,-2400.0,0.000157,5]
[420121060,1775693445521,-151.0,0.00015704,2]
[420121061,1775693445531,-151.0,0.00015704,2]
[420121062,1775693445542,-666.0,0.00015706,2]
[420121063,1775693445551,-1099.20357934,0.00015706,5]
[420121064,1775693445562,-1099.20357934,0.00015706,5]
[420121065,1775693445571,-30614.02152,0.00015707,2]
[420121066,1775693445581,-226530.8292754,0.00015707,2]
[420121067,1775693445591,-4985.5262084,0.00015707,2]
[420121068,1775693445601,-804211.5564398,0.00015707,2]
[420121069,1775693445611,-500.0,0.00015707,13]
[420121070,1775693445620,-500.0,0.00015707,14]
[420121071,1775693445630,-151.0,0.00015707,2]
[420121072,1775693445639,-151.0,0.00015707,2]
[420121073,1775693445649,-151.0,0.00015707,2]
[420121074,1775693445658,-151.0,0.00015707,2]
[420121075,1775693445668,-151.0,0.00015707,2]
[420121076,1775693445679,-151.0,0.00015707,2]
[420121077,1775693445688,-151.0,0.00015707,2]
[420121078,1775693445698,-151.0,0.00015707,2]
[420121079,1775693445708,-151.0,0.00015707,2]
[420121080,1775693445718,-151.0,0.00015707,2]
[420121081,1775693445727,-288.097917,0.00015707,2]
[420121082,1775693445738,-151.0,0.00015707,2]
[420121083,1775693445748,-151.0,0.00015707,2]
[420121084,1775693445758,-151.0,0.00015707,2]
[420121085,1775693445768,-151.0,0.00015707,2]
[420121086,1775693445778,-151.0,0.00015707,2]
[420121087,1775693445788,-151.0,0.00015707,2]
[420121088,1775693445798,-151.0,0.00015707,2]
[420121089,1775693445808,-151.0,0.00015707,2]
[420121090,1775693445817,-151.0,0.00015707,2]
[420121091,1775693445827,-151.197476,0.00015707,2]
[420121092,1775693445837,-151.197476,0.00015707,2]
[420121093,1775693445847,-77773.4130449,0.00015707,2]
[420121094,1775693445856,-151.197476,0.00015707,2]
[420121095,1775693445866,-151.0,0.00015707,2]
[420121096,1775693445876,-151.197476,0.00015707,2]
[420121097,1775693445886,-151.0,0.00015707,2]
[420121098,1775693445896,-151.0,0.00015707,2]
[420121099,1775693445905,-151.0,0.00015707,2]
[420121100,1775693445915,-151.0,0.00015707,2]
[420121101,1775693445925,-151.0,0.00015707,2]
[420121102,1775693445935,-151.0,0.00015707,2]
[420121103,1775693445945,-151.0,0.00015707,2]
[420121104,1775693445954,-151.0,0.00015707,2]
[420121105,1775693445964,-240.311337,0.00015707,2]
[420121106,1775693445974,-240.311337,0.00015707,2]
[420121107,1775693445984,-151.0,0.00015707,2]
[420121108,1775693445994,-240.311337,0.00015707,2]
[420121109,1775693446003,-240.311337,0.00015707,2]
[420121110,1775693446013,-151.0,0.00015707,2]
[420121111,1775693446023,-151.0,0.00015707,2]
[420121112,1775693446033,-151.0,0.00015707,2]
[420121113,1775693446042,-151.0,0.00015707,2]
[420121114,1775693446052,-151.0,0.00015707,2]
[420121115,1775693446061,-151.0,0.00015707,2]
[420121116,1775693446070,-151.0,0.00015707,2]
[420121117,1775693446080,-151.0,0.00015707,2]
[420121118,1775693446090,-151.0,0.00015707,2]
[420121119,1775693446100,-218.191684,0.00015707,2]
[420121120,1775693446110,-219483.1891242,0.00015707,2]
[420121121,1775693446119,-259.473897,0.00015707,2]
[420121122,1775693446128,-218.191684,0.00015707,2]
[420121123,1775693446138,-259.473897,0.00015707,2]
[420121124,1775693446148,-151.0,0.00015707,2]
[420121125,1775693446158,-218.191684,0.00015707,2]
[420121126,1775693446167,-259.473897,0.00015707,2]
[420121127,1775693446177,-151.0,0.00015707,2]
[420121128,1775693446187,-218.191684,0.00015707,2]
[420121129,1775693446196,-259.473897,0.00015707,2]
[420121130,1775693446207,-607.557328,0.00015707,2]
[420121131,1775693446216,-607.557328,0.00015707,2]
[420121132,1775693446227,-607.557328,0.00015707,2]
[420121133,1775693446237,-607.557328,0.00015707,2]
[420121134,1775693446247,-1206.5464844,0.00015707,2]
[420121135,1775693446257,-151.0,0.00015707,2]
[420121136,1775693446266,-151.0,0.00015707,2]
[420121137,1775693446275,-151.0,0.00015707,2]
[420121138,1775693446285,-151.0,0.00015707,2]
[420121139,1775693446294,-151.0,0.00015707,2]
[420121140,1775693446304,-151.0,0.00015707,2]
[420121141,1775693446315,-188.757496,0.00015707,2]
[420121142,1775693446324,-188.757496,0.00015707,2]
[420121143,1775693446334,-2546.201014,0.00015707,2]
[420121144,1775693446344,-151.0,0.00015707,2]
[420121145,1775693446354,-151.0,0.00015707,2]
[420121146,1775693446364,-188.757496,0.00015707,2]
[420121147,1775693446374,-2546.201014,0.00015707,2]
[420121148,1775693446384,-188.757496,0.00015707,2]
[420121149,1775693446393,-2546.201014,0.00015707,2]
[420121150,1775693446403,-1459.234311,0.00015707,2]
[420121151,1775693446413,-241.697587,0.00015707,2]
[420121152,1775693446423,-2546.201014,0.00015707,2]
[420121154,1775693446433,-151.0,0.00015707,2]
[420121156,1775693446443,-1459.234311,0.00015707,2]
[420121158,1775693446453,-312.387081,0.00015707,2]
[420121160,1775693446462,-197.034269,0.00015707,2]
[420121162,1775693446473,-1624.698398,0.00015707,2]
[420121164,1775693446483,-241.697587,0.00015707,2]
[420121166,1775693446493,-1459.234311,0.00015707,2]
[420121168,1775693446503,-161.744847,0.00015707,2]
[420121170,1775693446513,-312.387081,0.00015707,2]
[420121172,1775693446523,-1624.698398,0.00015707,2]
[420121174,1775693446532,-197.034269,0.00015707,2]
[420121176,1775693446542,-241.697587,0.00015707,2]
[420121178,1775693446552,-1459.234311,0.00015707,2]
[420121180,1775693446561,-197.034269,0.00015707,2]
[420121182,1775693446571,-1624.698398,0.00015707,2]
[420121184,1775693446581,-312.387081,0.00015707,2]
[420121185,1775693446591,-191.47926,0.00015707,2]
[420121188,1775693446601,-151.0,0.00015707,2]
[420121190,1775693446610,-241.697587,0.00015707,2]
[420121192,1775693446620,-1624.698398,0.00015707,2]
[420121194,1775693446630,-197.034269,0.00015707,2]
[420121196,1775693446640,-312.387081,0.00015707,2]
[420121198,1775693446650,-191.47926,0.00015707,2]
[420121200,1775693446661,-151.0,0.00015707,2]
[420121202,1775693446671,-1358.863153,0.00015707,2]
[420121204,1775693446681,-305.27691,0.00015707,2]
[420121206,1775693446691,-151.0,0.00015707,2]
[420121208,1775693446701,-191.47926,0.00015707,2]
[420121210,1775693446712,-151.0,0.00015707,2]
[420121212,1775693446722,-1358.863153,0.00015707,2]
[420121214,1775693446732,-305.27691,0.00015707,2]
[420121216,1775693446742,-1038.963273,0.00015707,2]
[420121218,1775693446752,-151.0,0.00015707,2]
[420121220,1775693446761,-191.47926,0.00015707,2]
[420121222,1775693446771,-1358.863153,0.00015707,2]
[420121224,1775693446780,-305.27691,0.00015707,2]
[420121225,1775693446790,-1038.963273,0.00015707,2]
[420121228,1775693446801,-151.0,0.00015707,2]
[420121230,1775693446811,-1358.863153,0.00015707,2]
[420121232,1775693447178,-1038.963273,0.00015707,2]
[420121233,1775693447188,-151.0,0.00015707,2]
[420121234,1775693447199,-305.27691,0.00015707,2]
[420121235,1775693447208,-1083.500033,0.00015707,2]
[420121236,1775693447218,-1038.963273,0.00015707,2]
[420121237,1775693447229,-151.0,0.00015707,2]
[420121238,1775693447239,-386.937057,0.00015707,2]
[420121239,1775693447249,-1083.500033,0.00015707,2]
[420121240,1775693447261,-386.937057,0.00015707,2]
[420121241,1775693447271,-1083.500033,0.00015707,2]
[420121242,1775693447280,-386.937057,0.00015707,2]
[420121243,1775693447290,-151.0,0.00015707,2]
[420121244,1775693447300,-151.0,0.00015707,2]
[420121245,1775693447310,-386.937057,0.00015707,2]
[420121246,1775693447320,-1083.500033,0.00015707,2]
[420121247,1775693447329,-151.0,0.00015707,2]
[420121248,1775693447339,-151.0,0.00015707,2]
[420121249,1775693447349,-151.0,0.00015707,2]
[420121250,1775693447359,-151.0,0.00015707,2]
[420121251,1775693447368,-151.0,0.00015707,2]
[420121252,1775693447378,-241.259101,0.00015707,2]
[420121253,1775693447390,-912.613664,0.00015707,2]
[420121254,1775693447401,-904.065616,0.00015707,2]
[420121255,1775693447412,-912.613664,0.00015707,2]
[420121256,1775693447422,-904.065616,0.00015707,2]
[420121257,1775693447433,-912.613664,0.00015707,2]
[420121258,1775693447444,-904.065616,0.00015707,2]
[420121259,1775693447455,-912.613664,0.00015707,2]
[420121260,1775693447465,-802.399313,0.00015707,2]
[420121261,1775693447476,-904.065616,0.00015707,2]
[420121262,1775693447486,-802.399313,0.00015707,2]
[420121263,1775693447497,-151.0,0.00015707,2]
[420121264,1775693447507,-802.399313,0.00015707,2]
[420121265,1775693447516,-151.0,0.00015707,2]
[420121266,1775693447526,-802.399313,0.00015707,2]
[420121267,1775693447536,-541.915353,0.00015707,2]
[420121268,1775693447545,-151.0,0.00015707,2]
[420121269,1775693447555,-541.915353,0.00015707,2]
[420121270,1775693447566,-151.0,0.00015707,2]
[420121271,1775693447575,-175.790376,0.00015707,2]
[420121272,1775693447585,-541.915353,0.00015707,2]
[420121273,1775693447596,-151.0,0.00015707,2]
[420121274,1775693447605,-928.384471,0.00015707,2]
[420121275,1775693447616,-151.0,0.00015707,2]
[420121276,1775693447626,-268.292307,0.00015707,2]
[420121277,1775693447637,-175.790376,0.00015707,2]
[420121278,1775693447647,-289.611523,0.00015707,2]
[420121279,1775693447657,-1049.352831,0.00015707,2]
[420121280,1775693447667,-928.384471,0.00015707,2]
[420121281,1775693447677,-151.0,0.00015707,2]
[420121282,1775693447687,-423.139282,0.00015707,2]
[420121283,1775693447697,-175.790376,0.00015707,2]
[420121284,1775693447707,-1049.352831,0.00015707,2]
[420121285,1775693447717,-928.384471,0.00015707,2]
[420121286,1775693447727,-151.0,0.00015707,2]
[420121287,1775693447737,-423.139282,0.00015707,2]
[420121288,1775693447747,-175.790376,0.00015707,2]
[420121289,1775693447756,-151.0,0.00015707,2]
[420121290,1775693447765,-1283.182552,0.00015707,2]
[420121291,1775693447775,-928.384471,0.00015707,2]
[420121292,1775693447784,-1049.352831,0.00015707,2]
[420121293,1775693447794,-151.0,0.00015707,2]
[420121294,1775693447803,-423.139282,0.00015707,2]
[420121295,1775693447813,-151.0,0.00015707,2]
[420121296,1775693447823,-1283.182552,0.00015707,2]
[420121297,1775693447832,-1049.352831,0.00015707,2]
[420121298,1775693447842,-423.139282,0.00015707,2]
[420121299,1775693447852,-765.922399,0.00015707,2]
[420121300,1775693447863,-151.0,0.00015707,2]
[420121301,1775693447873,-1283.182552,0.00015707,2]
[420121302,1775693447882,-151.0,0.00015707,2]
[420121303,1775693447892,-151.0,0.00015707,2]
[420121304,1775693447902,-765.922399,0.00015707,2]
[420121305,1775693447912,-151.0,0.00015707,2]
[420121306,1775693447921,-1283.182552,0.00015707,2]
[420121307,1775693447931,-151.0,0.00015707,2]
[420121308,1775693447940,-151.0,0.00015707,2]
[420121309,1775693447950,-765.922399,0.00015707,2]
[420121310,1775693447959,-541.915353,0.00015707,2]
[420121311,1775693447969,-151.0,0.00015707,2]
[420121312,1775693447979,-404.844291,0.00015707,2]
[420121313,1775693447989,-151.0,0.00015707,2]
[420121314,1775693447998,-151.0,0.00015707,2]
[420121315,1775693448007,-765.922399,0.00015707,2]
[420121316,1775693448017,-151.0,0.00015707,2]
[420121317,1775693448026,-404.844291,0.00015707,2]
[420121318,1775693448037,-151.0,0.00015707,2]
[420121319,1775693448046,-404.844291,0.00015707,2]
[420121320,1775693448055,-404.844291,0.00015707,2]
[420121321,1775693448065,-151.0,0.00015707,2]
[420121322,1775693448075,-151.0,0.00015707,2]
[420121323,1775693448085,-189.138821,0.00015707,2]
[420121324,1775693448095,-151.0,0.00015707,2]
[420121325,1775693448104,-189.138821,0.00015707,2]
[420121326,1775693448114,-189.138821,0.00015707,2]
[420121327,1775693448124,-189.138821,0.00015707,2]
[420121328,1775693448133,-1426.6025,0.00015707,2]
[420121329,1775693448143,-1426.6025,0.00015707,2]
[420121330,1775693448152,-1426.6025,0.00015707,2]
[420121331,1775693448162,-1426.6025,0.00015707,2]
[420121332,1775693448171,-600.576856,0.00015707,2]
[420121333,1775693448181,-151.0,0.00015707,2]
[420121334,1775693448190,-600.576856,0.00015707,2]
[420121335,1775693448200,-600.576856,0.00015707,2]
[420121336,1775693448210,-600.576856,0.00015707,2]
[420121337,1775693448219,-182.806487,0.00015707,2]
[420121338,1775693448229,-182.806487,0.00015707,2]
[420121339,1775693448238,-600.576856,0.00015707,2]
[420121340,1775693448248,-600.576856,0.00015707,2]
[420121341,1775693448258,-182.806487,0.00015707,2]
[420121342,1775693448269,-182.806487,0.00015707,2]
[420121343,1775693448279,-261.643071,0.00015707,2]
[420121344,1775693448289,-600.576856,0.00015707,2]
[420121345,1775693448299,-600.576856,0.00015707,2]
[420121346,1775693448309,-386.073975,0.00015707,2]
[420121347,1775693448319,-386.073975,0.00015707,2]
[420121348,1775693448329,-182.806487,0.00015707,2]
[420121349,1775693448339,-182.806487,0.00015707,2]
[420121350,1775693448349,-261.643071,0.00015707,2]
[420121351,1775693448358,-386.073975,0.00015707,2]
[420121352,1775693448368,-182.806487,0.00015707,2]
[420121353,1775693448378,-386.073975,0.00015707,2]
[420121354,1775693448388,-182.806487,0.00015707,2]
[420121355,1775693448397,-261.643071,0.00015707,2]
[420121356,1775693448406,-1493.94566,0.00015707,2]
[420121357,1775693448417,-1219.42111,0.00015707,2]
[420121358,1775693448427,-1493.94566,0.00015707,2]
[420121359,1775693448437,-1219.42111,0.00015707,2]
[420121360,1775693448448,-386.073975,0.00015707,2]
[420121361,1775693448457,-386.073975,0.00015707,2]
[420121362,1775693448467,-261.643071,0.00015707,2]
[420121363,1775693448476,-1493.94566,0.00015707,2]
[420121364,1775693448485,-1219.42111,0.00015707,2]
[420121365,1775693448495,-1493.94566,0.00015707,2]
[420121366,1775693448505,-1219.42111,0.00015707,2]
[420121367,1775693448515,-504.916277,0.00015707,2]
[420121368,1775693448524,-386.073975,0.00015707,2]
[420121369,1775693448534,-504.916277,0.00015707,2]
[420121370,1775693448544,-388.03223,0.00015707,2]
[420121371,1775693448554,-386.073975,0.00015707,2]
[420121372,1775693448564,-388.03223,0.00015707,2]
[420121373,1775693448574,-1493.94566,0.00015707,2]
[420121374,1775693448584,-1219.42111,0.00015707,2]
[420121375,1775693448594,-1493.94566,0.00015707,2]
[420121376,1775693448604,-1219.42111,0.00015707,2]
[420121377,1775693448614,-504.916277,0.00015707,2]
[420121378,1775693448625,-151.0,0.00015707,2]
[420121379,1775693448635,-151.0,0.00015707,2]
[420121380,1775693448645,-504.916277,0.00015707,2]
[420121381,1775693448655,-388.03223,0.00015707,2]
[420121382,1775693448666,-388.03223,0.00015707,2]
[420121383,1775693448676,-1219.42111,0.00015707,2]
[420121384,1775693448686,-1493.94566,0.00015707,2]
[420121385,1775693448696,-1219.42111,0.00015707,2]
[420121386,1775693448706,-1493.94566,0.00015707,2]
[420121387,1775693448716,-504.916277,0.00015707,2]
[420121388,1775693448727,-388.03223,0.00015707,2]
[420121389,1775693448737,-504.916277,0.00015707,2]
[420121390,1775693448747,-388.03223,0.00015707,2]
[420121391,1775693448757,-2067.805526,0.00015707,2]
[420121392,1775693448767,-1051.379948,0.00015707,2]
[420121393,1775693448778,-504.916277,0.00015707,2]
[420121394,1775693448787,-2067.805526,0.00015707,2]
[420121395,1775693448797,-243.409842,0.00015707,2]
[420121396,1775693448807,-1051.379948,0.00015707,2]
[420121397,1775693448817,-504.916277,0.00015707,2]
[420121398,1775693448828,-388.03223,0.00015707,2]
[420121399,1775693448838,-243.409842,0.00015707,2]
[420121400,1775693448848,-388.03223,0.00015707,2]
[420121401,1775693448859,-2067.805526,0.00015707,2]
[420121402,1775693448869,-1051.379948,0.00015707,2]
[420121403,1775693448879,-263.04162,0.00015707,2]
[420121404,1775693448890,-9151.786713,0.00015707,2]
[420121405,1775693448900,-2067.805526,0.00015707,2]
[420121406,1775693448910,-1051.379948,0.00015707,2]
[420121407,1775693448920,-431.181652,0.00015707,2]
[420121408,1775693448930,-243.409842,0.00015707,2]
[420121409,1775693448940,-263.04162,0.00015707,2]